fUST/lending_fUST_20241006
["ID","MTS","AMOUNT","RATE_DAILY","PERIOD"]
[339897399,1728147075773,-889.98,0.0001452,2]
[339897401,1728147075783,-500.0,0.0001452,2]
[339897403,1728147075792,-840.97,0.0001452,2]
[339897405,1728147075802,-500.0,0.0001452,2]
[339897407,1728147075812,-500.0,0.0001452,2]
[339897409,1728147075821,-623.06,0.0001452,2]
[339897411,1728147075831,-500.0,0.0001452,2]
[339897412,1728147075840,-500.0,0.0001452,2]
[339897414,1728147075849,-500.0,0.0001452,2]
[339897416,1728147075859,-500.0,0.0001452,2]
[339897418,1728147075869,-995.7,0.0001452,2]
[339897420,1728147075878,-500.0,0.0001452,2]
[339897423,1728147075890,-500.0,0.0001452,2]
[339897425,1728147075899,-633.5,0.0001452,2]
[339897427,1728147075910,-949.06,0.0001452,2]
[339897429,1728147075920,-500.0,0.0001452,2]
[339897431,1728147075929,-500.0,0.0001452,2]
[339897433,1728147075938,-500.0,0.0001452,2]
[339897435,1728147075948,-500.0,0.0001452,2]
[339897437,1728147075959,-500.0,0.0001452,2]
[339897439,1728147075969,-500.0,0.0001452,2]
[339897441,1728147075978,-507.28433296,0.0001452,2]
[339897443,1728147075988,-880.74,0.0001452,2]
[339897445,1728147075997,-868.77,0.0001452,2]
[339897447,1728147076006,-643.48,0.0001452,2]
[339897449,1728147076019,-500.0,0.0001452,2]
[339897451,1728147076030,-500.0,0.0001452,2]
[339897453,1728147076040,-500.0,0.0001452,2]
[339897456,1728147076051,-288.45891134,0.0001452,2]
[339897458,1728147076060,-500.0,0.0001452,2]
[339897459,1728147076069,-500.0,0.0001452,2]
[339897462,1728147076079,-501.99,0.0001452,2]
[339897464,1728147076088,-500.0,0.0001452,2]
[339897466,1728147076097,-500.0,0.0001452,2]
[339897468,1728147076106,-500.0,0.0001452,2]
[339897470,1728147076115,-500.0,0.0001452,2]
[339897472,1728147076124,-500.0,0.0001452,2]
[339897474,1728147076133,-500.0,0.0001452,2]
[339897476,1728147076143,-500.0,0.0001452,2]
[339897478,1728147076152,-500.0,0.0001452,2]
[339897480,1728147076161,-500.0,0.0001452,2]
[339897482,1728147076170,-611.0,0.0001452,2]
[339897484,1728147076179,-500.0,0.0001452,2]
[339897485,1728147076188,-500.0,0.0001452,2]
[339897487,1728147076198,-500.0,0.0001452,2]
[339897490,1728147076208,-500.0,0.0001452,2]
[339897492,1728147076217,-499.57630124,0.0001452,2]
[339897542,1728147076684,-0.42369876,0.0001452,2]
[339897544,1728147076694,-500.0,0.0001452,2]
[339897546,1728147076703,-500.0,0.0001452,2]
[339897548,1728147076714,-499.57630124,0.0001452,2]
[339897592,1728147077113,-500.0,0.00013231,2]
[339897594,1728147077124,-647.220282,0.00013972,2]
[339897596,1728147077135,-647.220282,0.00013972,2]
[339897599,1728147077145,-647.220282,0.00013972,2]
[339897601,1728147077155,-647.220282,0.00014,2]
[339897603,1728147077166,-151.0,0.00014246,2]
[339897605,1728147077177,-151.0,0.00014246,2]
[339897607,1728147077187,-0.42369876,0.0001452,2]
[339897609,1728147077198,-500.0,0.0001452,2]
[339897612,1728147077209,-500.0,0.0001452,2]
[339897614,1728147077218,-721.07,0.0001452,2]
[339897615,1728147077226,-539.3,0.0001452,2]
[339897617,1728147077235,-500.0,0.0001452,2]
[339897619,1728147077245,-500.0,0.0001452,2]
[339897621,1728147077254,-500.0,0.0001452,2]
[339897623,1728147077263,-500.0,0.0001452,2]
[339897625,1728147077273,-788.69,0.0001452,2]
[339897627,1728147077282,-713.96,0.0001452,2]
[339897629,1728147077291,-534.2,0.0001452,2]
[339897631,1728147077301,-500.0,0.0001452,2]
[339897633,1728147077310,-500.0,0.0001452,2]
[339897635,1728147077320,-664.84,0.0001452,2]
[339897637,1728147077535,-500.0,0.0001452,2]
[339897639,1728147077545,-500.0,0.0001452,2]
[339897641,1728147077554,-500.0,0.0001452,2]
[339897643,1728147077563,-500.0,0.0001452,2]
[339897645,1728147077572,-500.0,0.0001452,2]
[339897647,1728147077581,-500.0,0.0001452,2]
[339897649,1728147077591,-1095.12,0.0001452,2]
[339897651,1728147077601,-500.0,0.0001452,2]
[339897653,1728147077612,-793.97,0.0001452,2]
[339897655,1728147077622,-500.0,0.0001452,2]
[339897658,1728147077633,-500.0,0.0001452,2]
[339897660,1728147077644,-500.0,0.0001452,2]
[339897662,1728147077655,-854.53,0.0001452,2]
[339897664,1728147077664,-500.0,0.0001452,2]
[339897666,1728147077677,-842.37,0.0001452,2]
[339897668,1728147077686,-500.0,0.0001452,2]
[339897670,1728147077697,-220.65822766,0.0001452,2]
[339897673,1728147077708,-747.01,0.0001452,2]
[339897674,1728147077717,-500.0,0.0001452,2]
[339897676,1728147077726,-500.0,0.0001452,2]
[339897678,1728147077735,-500.0,0.0001452,2]
[339897680,1728147077744,-500.0,0.0001452,2]
[339897682,1728147077753,-500.0,0.0001452,2]
[339897684,1728147077763,-500.0,0.0001452,2]
[339897686,1728147077772,-500.0,0.0001452,2]
[339897688,1728147077781,-812.79,0.0001452,2]
[339897690,1728147077791,-1049.45,0.0001452,2]
[339897692,1728147077800,-501.79665638,0.0001452,2]
[339897694,1728147077811,-507.13,0.0001452,2]
[339897696,1728147077821,-500.0,0.0001452,2]
[339897698,1728147077831,-500.0,0.0001452,2]
[339897700,1728147077841,-500.0,0.0001452,2]
[339897702,1728147077850,-1035.73,0.0001452,2]
[339897704,1728147077859,-500.0,0.0001452,2]
[339897706,1728147077869,-500.0,0.0001452,2]
[339897708,1728147077878,-500.0,0.0001452,2]
[339897710,1728147077888,-500.0,0.0001452,2]
[339897712,1728147077897,-500.0,0.0001452,2]
[339897714,1728147077906,-500.0,0.0001452,2]
[339897716,1728147077916,-687.75,0.0001452,2]
[339897718,1728147077925,-500.0,0.0001452,2]
[339897720,1728147077935,-398.39955621,0.0001452,2]
[339897723,1728147077944,-500.0,0.0001452,2]
[339897724,1728147077954,-500.0,0.0001452,2]
[339897727,1728147077964,-500.0,0.0001452,2]
[339897729,1728147077974,-500.0,0.0001452,2]
[339897731,1728147077984,-500.0,0.0001452,2]
[339897733,1728147077993,-500.0,0.0001452,2]
[339897735,1728147078002,-500.0,0.0001452,2]
[339897737,1728147078011,-500.0,0.0001452,2]
[339897739,1728147078021,-500.0,0.0001452,2]
[339897741,1728147078030,-500.0,0.0001452,2]
[339897743,1728147078039,-406.51578458,0.0001452,2]
[339897745,1728147078049,-559.08,0.0001452,2]
[339897747,1728147078058,-500.0,0.0001452,2]
[339897749,1728147078068,-500.0,0.0001452,2]
[339897751,1728147078077,-1000.0,0.0001452,2]
[339897753,1728147078086,-581.97,0.0001452,2]
[339897755,1728147078095,-500.0,0.0001452,2]
[339897757,1728147078104,-500.0,0.0001452,2]
[339897758,1728147078114,-500.0,0.0001452,2]
[339897760,1728147078124,-500.0,0.0001452,2]
[339897762,1728147078133,-1056.11,0.0001452,2]
[339897764,1728147078142,-509.11913028,0.0001452,2]
[339897766,1728147078151,-500.0,0.0001452,2]
[339897768,1728147078160,-675.04,0.0001452,2]
[339897770,1728147078170,-1157.17,0.0001452,2]
[339897772,1728147078179,-500.0,0.0001452,2]
[339897774,1728147078188,-500.0,0.0001452,2]
[339897775,1728147078198,-500.0,0.0001452,2]
[339897776,1728147078209,-500.0,0.0001452,2]
[339897777,1728147078218,-500.0,0.0001452,2]
[339897778,1728147078228,-500.0,0.0001452,2]
[339897779,1728147078238,-500.0,0.0001452,2]
[339897780,1728147078247,-500.0,0.0001452,2]
[339897781,1728147078256,-500.0,0.0001452,2]
[339897782,1728147078266,-500.0,0.0001452,2]
[339897784,1728147078276,-500.0,0.0001452,2]
[339897786,1728147078285,-500.0,0.0001452,2]
[339897788,1728147078295,-500.0,0.0001452,2]
[339897790,1728147078304,-500.0,0.0001452,2]
[339897792,1728147078315,-500.0,0.0001452,2]
[339897794,1728147078325,-500.0,0.0001452,2]
[339897796,1728147078338,-500.0,0.0001452,2]
[339897798,1728147078349,-500.0,0.0001452,2]
[339897800,1728147078358,-500.0,0.0001452,2]
[339897802,1728147078369,-500.0,0.0001452,2]
[339897804,1728147078378,-500.0,0.0001452,2]
[339897806,1728147078388,-500.0,0.0001452,2]
[339897809,1728147078398,-928.89,0.0001452,2]
[339897811,1728147078408,-500.0,0.0001452,2]
[339897812,1728147078418,-500.0,0.0001452,2]
[339897815,1728147078428,-500.0,0.0001452,2]
[339897817,1728147078437,-500.0,0.0001452,2]
[339897819,1728147078447,-500.0,0.0001452,2]
[339897821,1728147078458,-500.0,0.0001452,2]
[339897822,1728147078469,-515.37,0.0001452,2]
[339897824,1728147078478,-1472.02,0.0001452,2]
[339897827,1728147078487,-500.0,0.0001452,2]
[339897829,1728147078496,-511.44658829,0.0001452,2]
[339897831,1728147078506,-500.0,0.0001452,2]
[339897833,1728147078515,-825.06,0.0001452,2]
[339897835,1728147078525,-781.77,0.0001452,2]
[339897837,1728147078533,-706.69,0.0001452,2]
[339897838,1728147078543,-500.0,0.0001452,2]
[339897840,1728147078552,-396.318247,0.0001452,2]
[339897842,1728147078562,-783.15,0.0001452,2]
[339897845,1728147078571,-500.0,0.0001452,2]
[339897847,1728147078581,-644.16,0.0001452,2]
[339897848,1728147078590,-500.0,0.0001452,2]
[339897851,1728147078599,-500.0,0.0001452,2]
[339897853,1728147078609,-500.0,0.0001452,2]
[339897855,1728147078618,-971.68,0.0001452,2]
[339897857,1728147078629,-500.0,0.0001452,2]
[339897859,1728147078638,-500.0,0.0001452,2]
[339897861,1728147078647,-500.0,0.0001452,2]
[339897863,1728147078657,-500.0,0.0001452,2]
[339897865,1728147078666,-532.56,0.0001452,2]
[339897867,1728147078675,-500.0,0.0001452,2]
[339897869,1728147078685,-500.0,0.0001452,2]
[339897871,1728147078694,-500.0,0.0001452,2]
[339897873,1728147078704,-500.0,0.0001452,2]
[339897875,1728147078725,-500.0,0.0001452,2]
[339897877,1728147078735,-500.0,0.0001452,2]
[339897879,1728147078744,-758.64,0.0001452,2]
[339897881,1728147078753,-500.0,0.0001452,2]
[339897883,1728147078763,-500.0,0.0001452,2]
[339897885,1728147078773,-500.0,0.0001452,2]
[339897887,1728147078782,-234.54043646,0.0001452,2]
[339897889,1728147078791,-547.69,0.0001452,2]
[339897891,1728147078800,-500.0,0.0001452,2]
[339897893,1728147078810,-500.0,0.0001452,2]
[339897894,1728147078819,-500.0,0.0001452,2]
[339897896,1728147078829,-319.18107069,0.0001452,2]
[339897898,1728147078838,-500.0,0.0001452,2]
[339897900,1728147078848,-500.0,0.0001452,2]
[339897902,1728147078858,-500.0,0.0001452,2]
[339897904,1728147078868,-251.01978418,0.0001452,2]
[339897908,1728147078895,-294.4205562,0.00014246,2]
[339897910,1728147078907,-352.7997258,0.00014246,2]
[339897912,1728147078916,-151.0,0.00014246,2]
[339897914,1728147078926,-405.50021582,0.0001452,2]
[339897916,1728147078935,-801.57,0.0001452,2]
[339897918,1728147078945,-500.0,0.0001452,2]
[339897920,1728147078955,-500.0,0.0001452,2]
[339897922,1728147078974,-500.0,0.0001452,2]
[339897925,1728147078983,-116.27021098,0.0001452,2]
[339897927,1728147078995,-383.72978902,0.0001452,2]
[339897929,1728147079004,-500.0,0.0001452,2]
[339897931,1728147079013,-316.37702538,0.0001452,2]
[339897933,1728147079025,-460.30297462,0.0001452,2]
[339897935,1728147079034,-500.0,0.0001452,2]
[339897937,1728147079044,-507.62355901,0.0001452,2]
[339897939,1728147079053,-500.0,0.0001452,2]
[339897941,1728147079063,-500.0,0.0001452,2]
[339897943,1728147079072,-500.0,0.0001452,2]
[339897945,1728147079082,-500.0,0.0001452,2]
[339897947,1728147079092,-501.99901659,0.0001452,2]
[339897949,1728147079101,-651.51,0.0001452,2]
[339897951,1728147079111,-856.34,0.0001452,2]
[339897953,1728147079121,-1078.06,0.0001452,2]
[339897955,1728147079131,-500.0,0.0001452,2]
[339897957,1728147079140,-500.0,0.0001452,2]
[339897959,1728147079149,-500.0,0.0001452,2]
[339897961,1728147079158,-500.0,0.0001452,2]
[339897963,1728147079167,-500.0,0.0001452,2]
[339897965,1728147079177,-500.0,0.0001452,2]
[339897967,1728147079186,-500.0,0.0001452,2]
[339897969,1728147079196,-600.79,0.0001452,2]
[339897971,1728147079210,-500.0,0.0001452,2]
[339897974,1728147079220,-500.0,0.0001452,2]
[339897975,1728147079229,-500.0,0.0001452,2]
[339897977,1728147079239,-500.0,0.0001452,2]
[339897980,1728147079249,-235.59600452,0.0001452,2]
[339897982,1728147079259,-500.0,0.0001452,2]
[339897984,1728147079269,-500.0,0.0001452,2]
[339897986,1728147079281,-525.8,0.0001452,2]
[339897988,1728147079290,-500.0,0.0001452,2]
[339897990,1728147079300,-500.0,0.0001452,2]
[339897992,1728147079309,-500.0,0.0001452,2]
[339897994,1728147079318,-716.2,0.0001452,2]
[339897996,1728147079329,-1024.10723879,0.0001452,2]
[339898026,1728147079607,-443.5698375,0.00013231,2]
[339898029,1728147079619,-56.4301625,0.00013231,2]
[339898031,1728147079630,-502.43,0.00013231,2]
[339898033,1728147079639,-84.68843779,0.00014246,2]
[339898080,1728147080063,-562.53184421,0.00014246,2]
[339898082,1728147080073,-151.0,0.00014246,2]
[339898084,1728147080082,-647.220282,0.00014246,2]
[339898086,1728147080091,-151.0,0.00014246,2]
[339898088,1728147080100,-647.220282,0.00014246,2]
[339898090,1728147080109,-647.220282,0.00014246,2]
[339898092,1728147080118,-151.0,0.00014246,2]
[339898094,1728147080127,-913.41276121,0.0001452,2]
[339898096,1728147080137,-672.99,0.0001452,2]
[339898098,1728147080148,-500.0,0.0001452,2]
[339898100,1728147080158,-484.60989228,0.0001452,2]
[339898104,1728147080190,-92.49010772,0.0001452,2]
[339898106,1728147080199,-177.76246878,0.0001452,2]
[339911454,1728147410992,155.0,0.0002001,120]
[339911487,1728148232262,-300.0,0.0001071,2]
[339911489,1728148232271,-300.0,0.0001071,2]
[339911491,1728148232281,-603.99,0.00010711,2]
[339911493,1728148232292,-310.746,0.00010711,2]
[339911495,1728148232304,-477.46748131,0.00010711,2]
[339911498,1728148232319,-5664.0,0.00010711,2]
[339911722,1728148240392,-17843.79651869,0.00010711,2]
[339911724,1728148240402,-250.0,0.00010798,2]
[339911726,1728148240412,-252.5243905,0.00010823,2]
[339911729,1728148240421,-3000.0,0.00011437,2]
[339911730,1728148240430,-250.0,0.00011753,2]
[339911733,1728148240440,-420.0,0.00011773,2]
[339911735,1728148240449,-420.0,0.00011781,2]
[339911737,1728148240459,-250.0,0.00011785,2]
[339911739,1728148240469,-1091.6772006,0.00011801,2]
[339911741,1728148240480,-250.0,0.00011818,2]
[339911743,1728148240489,-250.0,0.0001185,2]
[339911745,1728148240498,-250.0,0.00011882,2]
[339911747,1728148240508,-250.0,0.00011914,2]
[339911749,1728148240517,-250.0,0.00011947,2]
[339911751,1728148240526,-250.0,0.00011979,2]
[339911753,1728148240537,-625.64558,0.00012,2]
[339911755,1728148240546,-250.0,0.00012011,2]
[339911757,1728148240556,-250.0,0.00012043,2]
[339911759,1728148240567,-250.0,0.00012076,2]
[339911761,1728148240576,-250.0,0.00012108,2]
[339911763,1728148240585,-250.0,0.0001214,2]
[339911765,1728148240594,-250.0,0.00012172,2]
[339911767,1728148240604,-250.0,0.00012205,2]
[339911769,1728148240613,-250.0,0.00012237,2]
[339911771,1728148240622,-250.0,0.00012269,2]
[339911773,1728148240632,-250.0,0.00012301,2]
[339911775,1728148240641,-250.0,0.00012334,2]
[339911777,1728148240650,-250.0,0.00012366,2]
[339911779,1728148240660,-587.0,0.00012941,2]
[339911781,1728148240669,-587.0,0.00012959,2]
[339911783,1728148240679,-186.8716472,0.00013009,2]
[339911785,1728148240691,-186.545122,0.00013047,2]
[339911787,1728148240700,-186.545122,0.00013051,2]
[339911790,1728148240711,-186.545122,0.00013054,2]
[339911792,1728148240721,-186.545122,0.00013058,2]
[339911794,1728148240730,-186.545122,0.00013061,2]
[339911796,1728148240741,-186.545122,0.00013064,2]
[339911798,1728148240753,-186.545122,0.00013068,2]
[339911801,1728148240763,-186.545122,0.00013071,2]
[339911803,1728148240774,-186.545122,0.00013075,2]
[339911805,1728148240784,-186.545122,0.00013078,2]
[339911807,1728148240797,-186.545122,0.00013082,2]
[339911809,1728148240806,-186.545122,0.00013085,2]
[339911811,1728148240816,-186.545122,0.00013088,2]
[339911813,1728148240826,-186.545122,0.00013092,2]
[339911815,1728148240837,-186.545122,0.00013095,2]
[339911817,1728148240847,-186.545122,0.00013099,2]
[339911819,1728148240856,-186.545122,0.00013102,2]
[339911822,1728148240869,-186.545122,0.00013106,2]
[339911824,1728148240878,-186.545122,0.00013109,2]
[339911826,1728148240887,-186.545122,0.00013112,2]
[339911828,1728148240897,-245.37290552,0.00013568,2]
[339911830,1728148240908,-245.37290552,0.00013583,2]
[339911832,1728148240919,-186.87164719,0.00013588,2]
[339911835,1728148240930,-1169.54135282,0.00013598,2]
[339911837,1728148240939,-245.37290552,0.00013598,2]
[339911839,1728148240949,-1000.0,0.00013598,2]
[339911841,1728148240959,-19258.6795508,0.00013668,2]
[339911843,1728148240970,-458.96446936,0.00013668,2]
[339911845,1728148240980,-500.0,0.00013673,2]
[339911847,1728148240990,-38517.3591017,0.00013678,2]
[339911849,1728148241003,-917.92893872,0.00013678,2]
[339911852,1728148241014,-73525.28368366,0.00013688,2]
[339912324,1728148246357,-13138.77429514,0.00013688,2]
[339912327,1728148246367,-2065.34011212,0.00013688,2]
[339912329,1728148246377,-500.0,0.00013698,2]
[339912330,1728148246386,-500.0,0.00013698,2]
[339912332,1728148246396,-212.94268531,0.00013698,2]
[339912334,1728148246405,-467.59029886,0.00013698,2]
[339912337,1728148246415,-302.75070812,0.00013698,2]
[339912339,1728148246424,-500.0,0.00013698,2]
[339912341,1728148246434,-500.0,0.00013698,2]
[339912343,1728148246443,-500.0,0.00013698,2]
[339912344,1728148246453,-500.0,0.00013698,2]
[339912346,1728148246464,-500.0,0.00013698,2]
[339912348,1728148246473,-663.81,0.00013698,2]
[339912351,1728148246484,-500.0,0.00013698,2]
[339912353,1728148246494,-319.18107069,0.00013698,2]
[339912355,1728148246503,-500.0,0.00013698,2]
[339912357,1728148246513,-500.0,0.00013698,2]
[339912359,1728148246523,-694.55,0.00013698,2]
[339912361,1728148246532,-651.48,0.00013698,2]
[339912363,1728148246542,-500.0,0.00013698,2]
[339912365,1728148246551,-542.92,0.00013698,2]
[339912367,1728148246560,-500.0,0.00013698,2]
[339912369,1728148246569,-500.0,0.00013698,2]
[339912371,1728148246578,-500.0,0.00013698,2]
[339912373,1728148246588,-500.0,0.00013698,2]
[339912375,1728148246597,-500.0,0.00013698,2]
[339912378,1728148246611,-500.0,0.00013698,2]
[339912380,1728148246621,-500.0,0.00013698,2]
[339912382,1728148246632,-500.45602182,0.00013698,2]
[339912384,1728148246643,-500.52229068,0.00013698,2]
[339912386,1728148246653,-500.0,0.00013698,2]
[339912388,1728148246664,-500.0,0.00013698,2]
[339912390,1728148246673,-500.0,0.00013698,2]
[339912393,1728148246684,-784.65,0.00013698,2]
[339912395,1728148246695,-500.0,0.00013698,2]
[339912397,1728148246706,-407.08121127,0.00013698,2]
[339912399,1728148246717,-500.0,0.00013698,2]
[339912401,1728148246726,-500.0,0.00013698,2]
[339912403,1728148246736,-500.0,0.00013698,2]
[339912405,1728148246746,-500.0,0.00013698,2]
[339912408,1728148246757,-500.0,0.00013698,2]
[339912410,1728148246768,-500.0,0.00013698,2]
[339912412,1728148246778,-500.0,0.00013698,2]
[339912414,1728148246789,-500.0,0.00013698,2]
[339912416,1728148246798,-500.0,0.00013698,2]
[339912418,1728148246809,-488.39454933,0.00013698,2]
[339912420,1728148246819,-500.0,0.00013698,2]
[339912422,1728148246829,-981.39,0.00013698,2]
[339912424,1728148246838,-500.0,0.00013698,2]
[339912426,1728148246848,-500.0,0.00013698,2]
[339912428,1728148246857,-500.0,0.00013698,2]
[339912430,1728148246866,-500.0,0.00013698,2]
[339912432,1728148246876,-500.0,0.00013698,2]
[339912434,1728148246886,-500.0,0.00013698,2]
[339912436,1728148246896,-500.0,0.00013698,2]
[339912439,1728148246906,-500.0,0.00013698,2]
[339912441,1728148246915,-500.0,0.00013698,2]
[339912443,1728148246925,-500.0,0.00013698,2]
[339912445,1728148246935,-500.0,0.00013698,2]
[339912447,1728148246944,-500.61554463,0.00013698,2]
[339912449,1728148246953,-500.0,0.00013698,2]
[339912451,1728148246963,-500.0,0.00013698,2]
[339912453,1728148246973,-550.27550101,0.00013698,2]
[339912455,1728148246981,-564.69067615,0.00013698,2]
[339912456,1728148246991,-500.0,0.00013698,2]
[339912458,1728148247000,-500.0,0.00013698,2]
[339912461,1728148247010,-500.0,0.00013698,2]
[339912463,1728148247019,-535.45,0.00013698,2]
[339912464,1728148247028,-500.0,0.00013698,2]
[339912467,1728148247038,-500.0,0.00013698,2]
[339912469,1728148247048,-500.0,0.00013698,2]
[339912471,1728148247057,-500.0,0.00013698,2]
[339912473,1728148247067,-500.0,0.00013698,2]
[339912475,1728148247077,-500.0,0.00013698,2]
[339912477,1728148247086,-500.0,0.00013698,2]
[339912479,1728148247096,-500.0,0.00013698,2]
[339912481,1728148247105,-500.0,0.00013698,2]
[339912483,1728148247115,-500.0,0.00013698,2]
[339912485,1728148247123,-500.0,0.00013698,2]
[339912487,1728148247133,-500.0,0.00013698,2]
[339912489,1728148247142,-500.0,0.00013698,2]
[339912491,1728148247151,-500.0,0.00013698,2]
[339912493,1728148247161,-500.0,0.00013698,2]
[339912495,1728148247176,-500.0,0.00013698,2]
[339912497,1728148247185,-500.0,0.00013698,2]
[339912499,1728148247194,-500.0,0.00013698,2]
[339912501,1728148247204,-500.0,0.00013698,2]
[339912503,1728148247215,-500.0,0.00013698,2]
[339912505,1728148247225,-500.0,0.00013698,2]
[339912507,1728148247234,-500.0,0.00013698,2]
[339912527,1728148247414,-500.0,0.00013698,2]
[339912529,1728148247423,-500.0,0.00013698,2]
[339912531,1728148247433,-500.0,0.00013698,2]
[339912533,1728148247443,-500.0,0.00013698,2]
[339912535,1728148247452,-500.0,0.00013698,2]
[339912537,1728148247461,-786.72,0.00013698,2]
[339912539,1728148247470,-500.0,0.00013698,2]
[339912541,1728148247480,-500.0,0.00013698,2]
[339912543,1728148247489,-500.0,0.00013698,2]
[339912545,1728148247499,-500.0,0.00013698,2]
[339912547,1728148247507,-500.0,0.00013698,2]
[339912549,1728148247517,-500.0,0.00013698,2]
[339912551,1728148247526,-500.0,0.00013698,2]
[339912553,1728148247535,-500.0,0.00013698,2]
[339912555,1728148247544,-500.0,0.00013698,2]
[339912557,1728148247553,-500.0,0.00013698,2]
[339912559,1728148247562,-500.0,0.00013698,2]
[339912561,1728148247571,-500.0,0.00013698,2]
[339912563,1728148247581,-500.0,0.00013698,2]
[339912565,1728148247591,-500.0,0.00013698,2]
[339912568,1728148247600,-502.42979923,0.00013698,2]
[339912570,1728148247609,-335.10125445,0.00013698,2]
[339912572,1728148247619,-500.0,0.00013698,2]
[339912574,1728148247628,-522.51533808,0.00013698,2]
[339912576,1728148247638,-601.86,0.00013698,2]
[339912578,1728148247646,-439.91433442,0.00013698,2]
[339912580,1728148247656,-500.0,0.00013698,2]
[339912582,1728148247665,-1135.75,0.00013698,2]
[339912584,1728148247674,-500.0,0.00013698,2]
[339912586,1728148247683,-500.0,0.00013698,2]
[339912588,1728148247692,-500.0,0.00013698,2]
[339912590,1728148247702,-500.0,0.00013698,2]
[339912592,1728148247713,-647.24,0.00013698,2]
[339912594,1728148247721,-500.66,0.00013698,2]
[339912596,1728148247731,-500.0,0.00013698,2]
[339912598,1728148247740,-286.74329772,0.00013698,2]
[339912599,1728148247750,-500.0,0.00013698,2]
[339912602,1728148247759,-500.0,0.00013698,2]
[339912604,1728148247768,-500.0,0.00013698,2]
[339912605,1728148247778,-500.0,0.00013698,2]
[339912608,1728148247787,-500.0,0.00013698,2]
[339912610,1728148247797,-560.83,0.00013698,2]
[339912612,1728148247807,-500.0,0.00013698,2]
[339912614,1728148247816,-512.37853798,0.00013698,2]
[339912616,1728148247827,-500.0,0.00013698,2]
[339912618,1728148247836,-500.0,0.00013698,2]
[339912620,1728148247846,-500.0,0.00013698,2]
[339912622,1728148247855,-939.06,0.00013698,2]
[339912624,1728148247864,-500.0,0.00013698,2]
[339912626,1728148247874,-508.21182267,0.00013698,2]
[339912628,1728148247883,-500.0,0.00013698,2]
[339912630,1728148247892,-500.0,0.00013698,2]
[339912632,1728148247901,-500.0,0.00013698,2]
[339912634,1728148247911,-500.0,0.00013698,2]
[339912636,1728148247921,-500.0,0.00013698,2]
[339912638,1728148247931,-755.92,0.00013698,2]
[339912640,1728148247941,-500.0,0.00013698,2]
[339912642,1728148247950,-500.0,0.00013698,2]
[339912644,1728148247959,-500.0,0.00013698,2]
[339912646,1728148247970,-522.15,0.00013698,2]
[339912648,1728148247979,-500.0,0.00013698,2]
[339912650,1728148247989,-500.0,0.00013698,2]
[339912652,1728148247998,-588.17,0.00013698,2]
[339912654,1728148248008,-658.53,0.00013698,2]
[339912656,1728148248017,-500.0,0.00013698,2]
[339912658,1728148248027,-500.0,0.00013698,2]
[339912660,1728148248036,-500.0,0.00013698,2]
[339912662,1728148248046,-234.54043646,0.00013698,2]